bitfinex-derivatives/quotes_BNBF0:USTF0_20250708
["timestamp","ask_amount","ask_price","bid_price","bid_amount"]
[1751933448499,1.46384426,661.84,661.17,3.399156]
[1751933448697,1.46384426,661.83,661.16,5.334156]
[1751933448901,1.46384426,661.82,661.16,5.334156]
[1751933449203,1.46384426,661.81,661.16,5.334156]
[1751933449398,1.46384426,661.8,661.16,5.334156]
[1751933449599,1.46384426,661.79,661.17,3.399156]
[1751933449800,1.07409118,661.93,661.17,3.399156]
[1751933449999,2.53836522,661.92,661.17,3.399156]
[1751933450300,2.53836522,661.91,661.18,3.399156]
[1751933450505,1.46427404,661.9,661.18,3.399156]
[1751933450801,1.46427404,661.89,661.18,3.399156]
[1751933451005,1.46427404,661.88,661.18,3.399156]
[1751933451202,1.46427404,661.87,661.18,3.399156]
[1751933451405,1.46427404,661.86,661.18,3.399156]
[1751933451602,1.46427404,661.85,661.18,3.399156]
[1751933451901,1.46427404,661.84,661.18,3.399156]
[1751933452105,1.46427404,661.83,661.18,3.399156]
[1751933452305,1.46427404,661.82,661.19,3.399156]
[1751933452501,1.46427404,661.81,661.17,3.399156]
[1751933452706,1.46427404,661.8,661.16,5.334156]
[1751933452906,1.46427404,661.79,661.16,5.334156]
[1751933453103,1.46427404,661.78,661.16,5.334156]
[1751933453308,1.46427404,661.77,661.17,3.399156]
[1751933453605,2.3668595,661.96,661.17,3.399156]
[1751933453807,2.53912432,661.95,661.17,3.399156]
[1751933454107,2.53912432,661.94,661.17,3.399156]
[1751933454305,2.53912432,661.93,661.17,3.399156]
[1751933454609,2.53912432,661.92,661.17,3.399156]
[1751933454808,2.53912432,661.91,661.17,3.399156]
[1751933455005,2.53912432,661.9,661.17,3.399156]
[1751933455206,2.53912432,661.89,661.17,3.399156]
[1751933455506,2.53912432,661.88,661.18,3.399156]
[1751933455810,2.53912432,661.87,661.18,3.399156]
[1751933456009,2.53912432,661.86,661.18,3.399156]
[1751933456208,1.46503314,661.85,661.16,1.935]
[1751933456511,1.46503314,661.84,661.16,1.935]
[1751933456710,1.46503314,661.83,661.16,1.935]
[1751933456911,1.46503314,661.82,661.16,1.935]
[1751933457105,1.46503314,661.81,661.16,1.935]
[1751933457309,1.46503314,661.8,661.16,1.935]
[1751933457508,1.46503314,661.79,661.16,1.935]
[1751933457707,1.46503314,661.78,661.17,3.399156]
[1751933458010,1.46503314,661.77,661.17,3.399156]
[1751933458210,1.46503314,661.76,661.18,3.399156]
[1751933458411,1.46503314,661.75,661.18,3.399156]
[1751933458607,1.46503314,661.74,661.18,3.399156]
[1751933458811,1.46503314,661.73,661.16,1.935]
[1751933459107,1.46503314,661.72,661.16,1.935]
[1751933459306,1.46503314,661.71,661.16,1.935]
[1751933459506,1.46503314,661.7,661.16,1.935]
[1751933459710,1.46503314,661.69,661.16,1.935]
[1751933460007,1.46503314,661.68,661.16,1.935]
[1751933460209,1.46503314,661.67,661.16,1.935]
[1751933460408,1.46503314,661.66,661.16,1.935]
[1751933460608,1.46503314,661.65,661.16,1.935]
[1751933460809,1.46503314,661.64,661.16,1.935]
[1751933461008,1.07409118,661.83,661.16,1.935]
[1751933461211,2.54144749,661.82,661.16,1.935]
[1751933461409,2.54144749,661.81,661.16,1.935]
[1751933461609,2.54144749,661.8,661.16,1.935]
[1751933461810,2.54144749,661.79,661.16,1.935]
[1751933462010,2.54144749,661.78,661.16,1.935]
[1751933462210,2.54144749,661.77,661.16,1.935]
[1751933462414,2.54144749,661.76,661.16,1.935]
[1751933462612,1.46735631,661.75,661.16,1.935]
[1751933462915,1.46735631,661.74,661.16,1.935]
[1751933463111,1.46735631,661.73,661.16,1.935]
[1751933463316,1.46735631,661.72,661.16,1.935]
[1751933463514,1.46735631,661.71,661.16,1.935]
[1751933463715,1.46735631,661.7,661.16,1.935]
[1751933463912,1.46735631,661.69,661.16,1.935]
[1751933464116,2.54144749,661.68,661.2,3.399156]
[1751933464317,2.54144749,661.67,661.17,3.399156]
[1751933464616,2.54144749,661.66,661.17,3.399156]
[1751933464816,1.46735631,661.65,661.17,3.399156]
[1751933465014,3.400739,662.07,661.16,1.935]
[1751933465015,1.46735631,661.64,661.18,3.399156]
[1751933465213,1.46735631,661.63,661.17,3.399156]
[1751933465512,1.46735631,661.62,661.17,3.399156]
[1751933465718,2.36914804,661.75,661.17,3.399156]
[1751933465914,2.54139859,661.74,661.17,3.399156]
[1751933466218,2.54139859,661.73,661.16,3.399156]
[1751933466418,1.46730741,661.72,660.97,3.399156]
[1751933466616,1.46730741,661.71,660.97,3.399156]
[1751933466814,1.46730741,661.7,660.97,3.399156]
[1751933467118,1.46730741,661.69,660.97,3.399156]
[1751933467313,1.46730741,661.68,660.97,3.399156]
[1751933467518,1.46730741,661.67,660.97,3.399156]
[1751933467716,1.46730741,661.66,660.97,3.399156]
[1751933467916,1.46730741,661.65,660.97,3.399156]
[1751933468117,1.46730741,661.64,660.97,3.399156]
[1751933468416,1.46730741,661.63,660.97,3.399156]
[1751933468617,1.46730741,661.62,660.97,3.399156]
[1751933468916,1.46730741,661.61,660.97,3.399156]
[1751933469114,1.46730741,661.6,660.98,1.794]
[1751933469313,1.07409118,661.78,660.98,1.794]
[1751933469617,2.54066411,661.77,660.98,1.794]
[1751933469913,2.54066411,661.76,660.98,1.794]
[1751933470118,2.54066411,661.75,660.98,1.794]
[1751933470318,1.46657293,661.74,660.98,1.794]
[1751933470614,1.46657293,661.73,660.98,1.794]
[1751933470818,1.46657293,661.72,660.98,1.794]
[1751933471113,1.46657293,661.71,660.98,1.794]
[1751933471318,1.46657293,661.7,660.98,1.794]
[1751933471512,1.46657293,661.69,660.98,1.794]
[1751933471813,1.46657293,661.68,660.98,1.794]
[1751933472015,1.46657293,661.67,660.98,1.794]
[1751933472214,1.46657293,661.66,660.98,1.794]
[1751933472417,1.46657293,661.65,660.98,1.794]
[1751933472613,1.46657293,661.64,660.98,1.794]
[1751933472812,1.46657293,661.63,660.98,1.794]
[1751933473017,1.46657293,661.62,660.98,1.794]
[1751933473314,1.46657293,661.61,660.98,1.794]
[1751933473615,1.07409118,661.88,660.98,1.794]
[1751933473814,2.54015441,661.87,660.98,1.794]
[1751933474014,2.54015441,661.86,660.98,1.794]
[1751933474219,4.2340589,661.85,661.18,3.399156]
[1751933474417,4.32276714,661.84,661.18,3.399156]
[1751933474620,3.02827193,661.83,661.18,3.399156]
[1751933474814,2.54015441,661.82,661.18,3.399156]
[1751933475019,2.54015441,661.81,661.18,3.399156]
[1751933475220,2.54015441,661.8,661.18,3.399156]
[1751933475420,2.54015441,661.79,661.18,3.399156]
[1751933475615,2.54015441,661.78,661.18,3.399156]
[1751933475922,2.53996152,661.77,661.18,3.399156]
[1751933476122,1.46587034,661.76,660.98,1.794]
[1751933476323,1.46587034,661.75,660.98,1.794]
[1751933476522,1.46587034,661.74,660.98,1.794]
[1751933476818,1.46587034,661.73,660.98,1.794]
[1751933477019,1.46587034,661.72,660.98,1.794]
[1751933477220,1.46587034,661.71,660.98,1.794]
[1751933477419,1.46587034,661.7,660.98,1.794]
[1751933477618,1.46587034,661.69,660.98,1.794]
[1751933477819,1.46587034,661.68,660.98,1.794]
[1751933478023,1.46587034,661.67,660.98,1.794]
[1751933478224,1.46587034,661.66,660.98,1.794]
[1751933478422,1.46587034,661.65,660.98,1.794]
[1751933478623,1.46587034,661.64,660.98,1.794]
[1751933478925,1.46587034,661.63,660.98,1.794]
[1751933479122,1.46587034,661.62,660.98,1.794]
[1751933479323,1.07409118,661.93,660.98,1.794]
[1751933479525,2.53971899,661.92,660.98,1.794]
[1751933479724,2.53971899,661.91,660.98,1.794]
[1751933479924,2.53971899,661.9,660.98,1.794]
[1751933480120,2.53971899,661.89,660.98,1.794]
[1751933480324,2.53971899,661.88,660.98,1.794]
[1751933480522,2.53971899,661.87,660.98,1.794]
[1751933480826,2.53971899,661.86,660.98,1.794]
[1751933481026,2.53971899,661.85,660.98,1.794]
[1751933481221,2.53971899,661.84,660.98,1.794]
[1751933481426,1.46562781,661.83,660.98,1.794]
[1751933481626,1.46562781,661.82,660.98,1.794]
[1751933481827,1.46562781,661.81,660.98,1.794]
[1751933482022,1.46562781,661.8,660.98,1.794]
[1751933482223,1.46562781,661.79,660.98,1.794]
[1751933482422,1.46562781,661.78,660.98,1.794]
[1751933482622,1.46562781,661.77,660.98,1.794]
[1751933482927,1.46562781,661.76,660.98,1.794]
[1751933483123,1.46562781,661.75,660.98,1.794]
[1751933483423,1.46562781,661.74,660.98,1.794]
[1751933483626,1.46562781,661.73,660.98,1.794]
[1751933483922,1.46562781,661.72,660.98,1.794]
[1751933484123,1.46562781,661.71,660.98,1.794]
[1751933484422,1.46562781,661.7,660.98,1.794]
[1751933484622,1.46562781,661.69,660.98,1.794]
[1751933484826,1.46562781,661.68,660.98,1.794]
[1751933485023,1.46562781,661.67,660.98,1.794]
[1751933485323,1.46562781,661.66,660.98,1.794]
[1751933485623,1.46562781,661.65,660.98,1.794]
[1751933485822,1.46562781,661.64,660.98,1.794]
[1751933486027,2.77388367,661.92,661.03,3.399156]
[1751933486222,2.54251602,661.91,661.02,3.399156]
[1751933486421,2.54251602,661.9,661.02,3.399156]
[1751933486621,2.54248495,661.89,661.12,3.399156]
[1751933486826,2.54248495,661.88,661.12,3.399156]
[1751933487029,2.54248495,661.87,661.15,3.399156]
[1751933487227,2.54248495,661.86,661.14,3.399156]
[1751933487425,2.54248495,661.85,661.14,3.399156]
[1751933487623,2.54248495,661.84,661.14,3.399156]
[1751933487927,2.54248495,661.83,661.15,3.399156]
[1751933488222,2.54248495,661.82,661.15,3.399156]
[1751933488424,2.54248495,661.81,661.15,3.399156]
[1751933488626,0.48771399,661.87,661.15,3.399156]
[1751933488627,2.54248495,661.8,661.15,3.399156]
[1751933488827,2.54248495,661.79,661.15,3.399156]
[1751933489123,2.54248495,661.78,661.15,3.399156]
[1751933489323,2.54248495,661.77,661.15,3.399156]
[1751933489527,2.54248495,661.76,661.15,3.399156]
[1751933489728,2.54248495,661.75,661.15,3.399156]
[1751933489928,1.46550024,661.74,661.15,3.399156]
[1751933490128,1.46550024,661.73,661.15,3.399156]
[1751933490428,1.46550024,661.72,661.15,3.399156]
[1751933490628,1.46550024,661.71,661.15,3.399156]
[1751933490822,1.46550024,661.7,661.15,3.399156]
[1751933491027,1.46550024,661.69,661.15,3.399156]
[1751933491224,1.46550024,661.68,661.15,3.399156]
[1751933491524,1.07698471,661.79,661.16,3.399156]
[1751933491724,2.54217414,661.78,661.16,3.399156]
[1751933491928,2.54217414,661.77,661.16,3.399156]
[1751933492130,2.54217414,661.76,661.16,3.399156]
[1751933492331,2.54217414,661.75,661.16,3.399156]
[1751933492531,1.46518943,661.74,661.16,3.399156]
[1751933492727,1.46518943,661.73,661.19,3.399156]
[1751933492932,1.46518943,661.72,661.19,3.399156]
[1751933493230,1.46518943,661.71,661.19,3.399156]
[1751933493531,1.46518943,661.7,661.17,3.399156]
[1751933493728,1.46518943,661.69,661.17,3.399156]
[1751933493926,1.46518943,661.68,661.17,3.399156]
[1751933494133,1.07698471,661.78,661.17,3.399156]
[1751933494332,2.54223323,661.77,661.18,3.399156]
[1751933494528,2.54223323,661.76,661.18,3.399156]
[1751933494727,2.54223323,661.75,661.18,3.399156]
[1751933494929,2.54223323,661.74,661.18,3.399156]
[1751933495232,1.46524852,661.73,661.18,3.399156]
[1751933495433,1.46524852,661.72,660.98,1.794]
[1751933495732,1.46524852,661.71,660.98,1.794]
[1751933495934,1.07698471,661.92,661.05,3.399156]
[1751933496133,2.54205326,661.91,661.05,3.399156]
[1751933496334,1.46506855,661.9,661.05,3.399156]
[1751933496531,1.46506855,661.89,660.99,3.399156]
[1751933496731,1.46506855,661.88,661.05,3.399156]
[1751933496931,1.46506855,661.87,661.05,3.399156]
[1751933497134,1.46506855,661.86,661.05,3.399156]
[1751933497431,2.54205326,661.85,661.05,3.399156]
[1751933497734,1.46506855,661.84,661.05,3.399156]
[1751933497929,1.46506855,661.83,661.05,3.399156]
[1751933498132,1.46506855,661.82,661.05,3.399156]
[1751933498334,1.46506855,661.81,661.05,3.399156]
[1751933498532,1.46506855,661.8,661.05,3.399156]
[1751933498735,1.46506855,661.79,661.05,3.399156]
[1751933498935,1.46506855,661.78,661.05,3.399156]
[1751933499131,1.46506855,661.77,661.05,3.399156]
[1751933499336,1.46506855,661.76,661.05,3.399156]
[1751933499536,1.46506855,661.75,661.05,3.399156]
[1751933499735,1.46506855,661.74,661.05,3.399156]
[1751933499937,1.07698471,661.99,661.05,3.399156]
[1751933500132,2.54202702,661.98,661.05,3.399156]
[1751933500436,0.48757657,662.04,661.05,3.399156]
[1751933500437,2.54202702,661.97,661.05,3.399156]
[1751933500633,2.54202702,661.96,661.05,3.399156]
[1751933500833,2.54202702,661.95,661.05,3.399156]
[1751933501037,2.54202702,661.94,661.05,3.399156]
[1751933501333,2.54202702,661.93,661.05,3.399156]
[1751933501536,2.54202702,661.92,661.05,3.399156]
[1751933501733,2.54202702,661.91,661.05,3.399156]
[1751933501938,1.46504231,661.9,661.05,3.399156]
[1751933502231,1.46504231,661.89,661.05,3.399156]
[1751933502433,1.46504231,661.88,661.05,3.399156]
[1751933502637,2.54202702,661.87,661.21,3.399156]
[1751933502932,2.54202702,661.86,661.24,3.399156]
[1751933503132,2.54202702,661.85,661.24,3.399156]
[1751933503433,1.46504231,661.84,661.24,3.399156]
[1751933503632,1.46504231,661.83,661.24,3.399156]
[1751933503833,1.46504231,661.82,661.24,3.399156]
[1751933504032,1.46504231,661.81,661.22,3.399156]
[1751933504232,1.46504231,661.8,661.25,3.399156]
[1751933504437,1.46504231,661.79,661.25,3.399156]
[1751933504632,1.07698471,661.87,661.25,3.399156]
[1751933504633,1.46504231,661.78,661.25,3.399156]
[1751933504837,1.29365927,661.95,661.25,3.399156]
[1751933504838,1.07698471,661.85,661.25,3.399156]
[1751933505137,1.46501189,661.84,661.25,3.399156]
[1751933505338,1.46501189,661.83,661.23,3.399156]
[1751933505640,1.46501189,661.82,661.23,3.399156]
[1751933505833,1.46501189,661.81,661.23,3.399156]
[1751933506038,1.46501189,661.8,661.23,3.399156]
[1751933506234,1.46501189,661.79,661.23,3.399156]
[1751933506538,1.46501189,661.78,661.23,3.399156]
[1751933506738,1.07698471,661.86,661.24,3.399156]
[1751933507038,1.46498809,661.85,661.23,3.399156]
[1751933507235,1.46498809,661.84,661.23,3.399156]
[1751933507434,1.46498809,661.83,661.23,3.399156]
[1751933507633,1.46498809,661.82,661.23,3.399156]
[1751933507934,1.46498809,661.81,661.23,3.399156]
[1751933508138,1.07698471,661.87,661.23,3.399156]
[1751933508139,1.46498809,661.8,661.23,3.399156]
[1751933508339,1.46498809,661.79,661.23,3.399156]
[1751933508539,1.46498809,661.78,661.25,3.399156]
[1751933508740,1.07698471,661.95,661.25,3.399156]
[1751933509040,2.54194642,661.94,661.25,3.399156]
[1751933509345,2.54194642,661.93,661.25,3.399156]
[1751933509540,2.54194642,661.92,661.25,3.399156]
[1751933509839,2.54194642,661.91,661.25,3.399156]
[1751933510040,2.54194642,661.9,661.25,3.399156]
[1751933510240,2.54194642,661.89,661.24,3.399156]
[1751933510537,2.54194642,661.88,661.25,3.399156]
[1751933510737,1.69686789,662.0,661.25,3.399156]
[1751933510738,2.54194642,661.87,661.25,3.399156]
[1751933511040,2.54194642,661.86,661.25,3.399156]
[1751933511336,1.46496171,661.85,661.25,3.399156]
[1751933511540,2.54194642,661.84,661.25,3.399156]
[1751933511740,1.46496171,661.83,661.28,3.399156]
[1751933511940,1.46496171,661.82,661.28,3.399156]
[1751933512143,1.46496171,661.81,661.29,3.399156]
[1751933512337,1.46496171,661.8,661.29,3.399156]
[1751933512539,1.46496171,661.79,661.29,3.399156]
[1751933512740,1.07698471,661.93,661.29,3.399156]
[1751933512939,2.54189325,661.92,661.29,3.399156]
[1751933513138,2.54189325,661.91,661.29,3.399156]
[1751933513338,2.54187967,661.9,661.29,3.399156]
[1751933513537,2.54187967,661.89,661.29,3.399156]
[1751933513739,2.54187967,661.88,661.29,3.399156]
[1751933513938,2.54187967,661.87,661.29,3.399156]
[1751933514138,2.54187967,661.86,661.29,3.399156]
[1751933514337,2.54187967,661.85,661.29,3.399156]
[1751933514538,2.54187967,661.84,661.29,3.399156]
[1751933514741,1.46489496,661.83,661.29,3.399156]
[1751933514939,1.46489496,661.82,661.29,3.399156]
[1751933515141,1.46489496,661.81,661.29,3.399156]
[1751933515338,1.46489496,661.8,661.29,3.399156]
[1751933515540,1.46489496,661.79,661.29,3.399156]
[1751933515741,1.07698471,661.91,661.29,3.399156]
[1751933515940,2.54186628,661.9,661.29,3.399156]
[1751933516142,2.54186628,661.89,661.29,3.399156]
[1751933516344,2.54186628,661.88,661.29,3.399156]
[1751933516544,2.54186628,661.87,661.29,3.399156]
[1751933516744,2.54186628,661.86,661.29,3.399156]
[1751933516942,2.54186628,661.85,661.29,3.399156]
[1751933517146,1.4648681,661.84,661.29,3.399156]
[1751933517441,1.4648681,661.83,661.29,3.399156]
[1751933517742,1.4648681,661.82,661.29,3.399156]
[1751933517945,1.4648681,661.81,661.29,3.399156]
[1751933518141,1.4648681,661.8,661.29,3.399156]
[1751933518345,1.07699818,661.92,661.29,3.399156]
[1751933518346,1.4648681,661.79,661.29,3.399156]
[1751933518543,1.07699818,661.9,661.29,3.399156]
[1751933518741,2.54177013,661.89,661.29,3.399156]
[1751933518942,2.54177013,661.88,661.29,3.399156]
[1751933519146,2.54177013,661.87,661.29,3.399156]
[1751933519344,2.54177013,661.86,661.29,3.399156]
[1751933519543,2.54177013,661.85,661.29,3.399156]
[1751933519845,1.69609647,661.99,661.29,3.399156]
[1751933519846,1.46477195,661.84,661.29,3.399156]
[1751933520051,1.46477195,661.83,661.29,3.399156]
[1751933520244,1.46477195,661.82,661.29,3.399156]
[1751933520447,1.46477195,661.81,661.29,3.399156]
[1751933520648,1.46477195,661.8,661.29,3.399156]
[1751933520950,1.46477195,661.79,661.29,3.399156]
[1751933521142,1.07699818,661.88,661.29,3.399156]
[1751933521143,1.07699818,661.87,661.29,3.399156]
[1751933521345,2.54216524,661.86,661.26,3.399156]
[1751933521548,1.46516706,661.85,661.26,3.399156]
[1751933521748,1.46516706,661.84,661.26,3.399156]
[1751933521943,1.46516706,661.83,661.25,3.399156]
[1751933522145,1.46516706,661.82,661.25,3.399156]
[1751933522348,1.46516706,661.81,661.25,3.399156]
[1751933522548,1.46516706,661.8,661.25,3.399156]
[1751933522751,1.46516706,661.79,661.25,3.399156]
[1751933522949,1.07699818,661.9,661.25,3.399156]
[1751933523146,2.54208332,661.89,661.25,3.399156]
[1751933523347,2.54208332,661.88,661.25,3.399156]
[1751933523551,2.54208332,661.87,661.25,3.399156]
[1751933523851,1.46508514,661.86,661.25,3.399156]
[1751933524047,1.46508514,661.85,661.24,3.399156]
[1751933524250,1.46508514,661.84,661.24,3.399156]
[1751933524448,2.37028471,661.95,661.24,3.399156]
[1751933524449,1.46508514,661.83,661.24,3.399156]
[1751933524652,1.46508514,661.82,661.24,3.399156]
[1751933524846,1.46508514,661.81,661.24,3.399156]
[1751933525058,1.46508514,661.8,661.24,3.399156]
[1751933525354,1.46508514,661.79,661.23,3.399156]
[1751933525557,1.07699818,661.89,661.22,3.399156]
[1751933525758,2.54202392,661.88,661.22,3.399156]
[1751933525952,2.54202392,661.87,661.22,3.399156]
[1751933526153,1.46502574,661.86,661.22,3.399156]
[1751933526360,1.46502574,661.85,661.26,3.399156]
[1751933526557,1.46502574,661.84,661.27,3.399156]
[1751933526761,1.46502574,661.83,661.27,3.399156]
[1751933527054,1.46502574,661.82,661.27,3.399156]
[1751933527258,1.46502574,661.81,661.27,3.399156]
[1751933527459,1.46502574,661.8,661.27,3.399156]
[1751933527759,1.46502574,661.79,661.27,3.399156]
[1751933527960,1.07699818,661.9,661.27,3.399156]
[1751933528160,2.54205541,661.89,661.27,3.399156]
[1751933528360,2.54205541,661.88,661.27,3.399156]
[1751933528660,2.54205541,661.87,661.27,3.399156]
[1751933528860,2.54205541,661.86,661.27,3.399156]
[1751933529060,1.46505723,661.85,661.28,3.399156]
[1751933529261,1.46505723,661.84,661.28,3.399156]
[1751933529457,1.46505723,661.83,661.29,1.353]
[1751933529760,1.46505723,661.82,661.29,1.353]
[1751933529958,1.46505723,661.81,661.29,1.353]
[1751933530156,1.46505723,661.8,661.29,1.353]
[1751933530458,1.69609647,661.99,661.29,1.353]
[1751933530459,1.46505723,661.79,661.29,1.353]
[1751933530661,1.07699818,661.9,661.29,1.353]
[1751933530857,2.54214217,661.89,661.29,1.353]
[1751933531062,2.54214217,661.88,661.29,1.353]
[1751933531262,2.54214217,661.87,661.29,4.752156]
[1751933531459,2.54214217,661.86,661.29,4.752156]
[1751933531660,2.54214217,661.85,661.29,4.752156]
[1751933531864,1.46514399,661.84,661.29,4.752156]
[1751933532063,1.46514399,661.83,661.29,4.752156]
[1751933532260,1.46514399,661.82,661.29,4.752156]
[1751933532461,1.46514399,661.81,661.29,4.752156]
[1751933532664,1.46514399,661.8,661.29,4.752156]
[1751933532964,1.46514399,661.79,661.29,4.752156]
[1751933533165,1.07699818,661.9,661.29,4.752156]
[1751933533360,2.54228071,661.89,661.29,4.752156]
[1751933533566,2.54228071,661.88,661.29,4.752156]
[1751933533766,2.54228071,661.87,661.29,4.752156]
[1751933533967,2.54228071,661.86,661.29,4.752156]
[1751933534161,2.54228071,661.85,661.29,4.752156]
[1751933534467,2.54228071,661.84,661.29,4.752156]
[1751933534766,1.46528253,661.83,661.29,4.752156]
[1751933534963,1.46528253,661.82,661.29,4.752156]
[1751933535163,1.46528253,661.81,661.29,4.752156]
[1751933535465,1.46528253,661.8,661.29,4.752156]
[1751933535767,1.46528253,661.79,661.29,4.752156]
[1751933535965,1.07699818,661.88,661.29,4.752156]
[1751933536164,2.54240483,661.87,661.3,3.399156]
[1751933536363,2.54240483,661.86,661.3,3.399156]
[1751933536567,2.54240483,661.85,661.3,3.399156]
[1751933536764,2.54240483,661.84,661.3,3.399156]
[1751933536969,2.54240483,661.83,661.3,3.399156]
[1751933537166,1.46540665,661.82,661.3,3.399156]
[1751933537364,1.46540665,661.81,661.29,1.353]
[1751933537565,1.46540665,661.8,661.29,1.353]
[1751933537865,1.46540665,661.79,661.29,1.353]
[1751933538064,1.46540665,661.78,661.29,1.353]
[1751933538268,1.07699818,661.89,661.29,1.353]
[1751933538568,2.54257696,661.88,661.29,1.353]
[1751933538768,2.54257696,661.87,661.29,1.353]
[1751933538969,2.54257696,661.86,661.29,1.353]
[1751933539164,2.54257696,661.85,661.29,1.353]
[1751933539465,1.46557878,661.84,661.29,1.353]
[1751933539664,1.46557878,661.83,661.29,1.353]
[1751933539868,1.46557878,661.82,661.29,1.353]
[1751933540066,1.46557878,661.81,661.29,1.353]
[1751933540265,1.46557878,661.8,661.29,1.353]
[1751933540463,1.46557878,661.79,661.29,1.353]
[1751933540664,1.46557878,661.78,661.29,1.353]
[1751933540863,1.46557878,661.77,661.29,1.353]
[1751933541069,1.07699818,661.88,661.29,1.353]
[1751933541364,2.54276986,661.87,661.29,1.353]
[1751933541569,2.54276986,661.86,661.29,1.353]
[1751933541866,2.54276986,661.85,661.29,1.353]
[1751933542069,1.46577168,661.84,661.29,1.353]
[1751933542364,1.46577168,661.83,661.29,1.353]
[1751933542565,1.46577168,661.82,661.29,1.353]
[1751933542770,1.46577168,661.81,661.29,1.353]
[1751933542966,1.46577168,661.8,661.29,1.353]
[1751933543169,1.46577168,661.79,661.29,1.353]
[1751933543466,1.46577168,661.78,661.29,1.353]
[1751933543670,1.46577168,661.77,661.29,1.353]
[1751933543870,1.46577168,661.76,661.29,1.353]
[1751933544167,1.07699818,661.88,661.29,1.353]
[1751933544371,2.54302193,661.87,661.29,1.353]
[1751933544570,2.54369639,661.86,661.29,1.353]
[1751933544768,2.54369639,661.85,661.29,1.353]
[1751933544968,2.54369639,661.84,661.29,1.353]
[1751933545171,2.54369639,661.83,661.29,1.353]
[1751933545369,1.46602375,661.82,661.29,1.353]
[1751933545568,1.46602375,661.81,661.29,1.353]
[1751933545768,1.46602375,661.8,661.29,1.353]
[1751933545973,1.46602375,661.79,661.29,1.353]
[1751933546273,1.46602375,661.78,661.29,1.353]
[1751933546468,1.46602375,661.77,661.29,1.353]
[1751933546669,1.46602375,661.76,661.29,1.353]
[1751933546870,1.07767264,661.86,661.29,1.353]
[1751933547073,2.54390635,661.85,661.29,1.353]
[1751933547370,2.54390635,661.84,661.29,1.353]
[1751933547575,2.54414876,661.83,661.29,1.353]
[1751933547875,2.54414876,661.82,661.29,1.353]
[1751933548072,2.54414876,661.81,661.29,1.353]
[1751933548375,1.46623371,661.8,661.29,1.353]
[1751933548573,1.07791505,661.95,661.29,1.353]
[1751933548574,1.46623371,661.79,661.29,1.353]
[1751933548774,1.46623371,661.78,661.29,1.353]
[1751933548971,1.46623371,661.77,661.29,1.353]
[1751933549176,1.46623371,661.76,661.29,1.353]
[1751933549473,1.46623371,661.75,661.29,1.353]
[1751933549672,1.07791505,661.89,661.29,1.353]
[1751933549873,2.54547439,661.88,661.29,1.353]
[1751933550176,2.54547439,661.87,661.29,1.353]
[1751933550376,2.54547439,661.86,661.29,1.353]
[1751933550573,2.54547439,661.85,661.29,1.353]
[1751933550876,2.54547439,661.84,661.29,1.353]
[1751933551076,2.54547439,661.83,661.29,1.353]
[1751933551276,2.54547439,661.82,661.33,3.399156]
[1751933551476,2.54547439,661.81,661.33,3.399156]
[1751933551676,2.54547439,661.8,661.33,3.399156]
[1751933551878,2.54547439,661.79,661.33,3.399156]
[1751933552176,2.54547439,661.78,661.34,3.399156]
[1751933552480,2.54547439,661.77,661.34,3.399156]
[1751933552676,2.54547439,661.76,661.33,3.399156]
[1751933552976,1.46755934,661.75,661.33,3.399156]
[1751933553173,1.56607907,661.93,661.34,3.399156]
[1751933553373,2.54631469,661.92,661.34,3.399156]
[1751933553575,2.54631469,661.91,661.34,3.399156]
[1751933553877,2.54631469,661.9,661.34,3.399156]
[1751933554075,2.54631469,661.89,661.34,3.399156]
[1751933554376,2.54631469,661.88,661.31,3.399156]
[1751933554578,2.54631469,661.87,661.31,3.399156]
[1751933554879,0.26298289,662.15,661.29,1.353]
[1751933554880,2.54631469,661.86,661.33,3.399156]
[1751933555075,2.54631469,661.85,661.29,1.353]
[1751933555273,2.54631469,661.84,661.29,1.353]
[1751933555478,1.46839964,661.83,661.29,1.353]
[1751933555678,1.46839964,661.82,661.29,1.353]